bitfinex-derivatives/quotes_ETHF0:USTF0_20250106
["timestamp","ask_amount","ask_price","bid_price","bid_amount"]
[1736153836360,1.092,3644.4,3644.3,0.27449]
[1736153836759,1.092,3644.4,3644.3,0.54889]
[1736153837060,1.092,3644.4,3644.3,0.27449]
[1736153837261,1.092,3644.4,3644.3,0.54889]
[1736153837461,1.092,3644.4,3644.3,0.27449]
[1736153837861,2.24548,3644.5,3644.3,0.27449]
[1736153838060,2.24548,3644.5,3644.2,40.8]
[1736153838061,1.091,3644.5,3644.2,43.00201509]
[1736153838363,1.36548,3644.5,3644.4,0.27448]
[1736153838763,1.091,3644.5,3644.4,0.27448]
[1736153839356,1.36548,3644.5,3644.4,0.27448]
[1736153839758,1.36548,3644.5,3644.2,43.00201509]
[1736153839953,1.36548,3644.5,3644.3,0.27449]
[1736153840560,1.36548,3644.5,3644.4,0.27448]
[1736153840761,0.27449,3644.4,3644.2,41.0745]
[1736153840960,0.27448,3644.4,3644.2,0.2745]
[1736153842663,1.091,3644.3,3644.2,0.2745]
[1736153842967,1.091,3644.3,3644.0,2.39191]
[1736153843168,1.9515,3644.2,3644.0,2.39191]
[1736153843461,1.9515,3644.2,3644.0,43.19191]
[1736153843661,2.226,3644.2,3644.0,43.19191]
[1736153844267,1.9515,3644.2,3644.1,0.27451]
[1736153845968,1.091,3644.3,3644.0,42.9174]
[1736153846173,0.27447,3644.6,3644.5,0.27448]
[1736153846372,0.27448,3644.5,3644.4,0.27448]
[1736153846572,5.313,3644.6,3644.0,42.9174]
[1736153846875,5.58747,3644.6,3644.5,0.27448]
[1736153847277,5.58747,3644.6,3644.0,43.60368]
[1736153847278,0.27448,3644.5,3644.0,43.60368]
[1736153847467,0.27449,3644.4,3644.0,42.9174]
[1736153847971,0.68621,3644.5,3644.0,43.19191]
[1736153848176,0.27448,3644.4,3644.0,2.39191]
[1736153848474,0.27451,3644.1,3644.0,2.39191]
[1736153848675,0.27451,3644.1,3644.0,43.19191]
[1736153849372,0.2745,3644.2,3644.1,0.2745]
[1736153851877,0.27449,3644.5,3644.4,0.27448]
[1736153852377,0.27449,3644.5,3644.4,41.07448]
[1736153854681,0.27449,3644.5,3644.4,0.27448]
[1736153859375,1.091,3644.5,3644.2,2.20201509]
[1736153859577,1.091,3644.5,3644.4,0.27448]
[1736153860184,1.091,3644.5,3644.3,1.9706]
[1736153860387,1.36548,3644.5,3644.4,0.27448]
[1736153864091,1.091,3644.5,3644.0,3.30801959]
[1736153864385,1.091,3644.5,3644.0,2.1174]
[1736153864695,0.27451,3644.0,3643.9,3.48232]
[1736153864885,0.27451,3644.0,3643.9,5.57982]
[1736153865187,0.27451,3644.0,3643.9,12.04558578]
[1736153865382,0.27451,3644.0,3643.9,8.83778578]
[1736153865783,3.2078,3644.3,3643.9,8.56326578]
[1736153866086,0.27451,3644.2,3644.1,0.27451]
[1736153866482,0.2745,3644.2,3644.1,0.2745]
[1736153866787,0.27451,3644.1,3644.0,0.27451]
[1736153867087,0.27451,3644.0,3643.9,2.37202]
[1736153867275,2.29741,3644.0,3643.9,2.37202]
[1736153868187,2.29741,3644.0,3643.9,2.0975]
[1736153868484,4.0445,3644.0,3643.8,2.1151]
[1736153868788,4.0445,3644.0,3643.6,8.60436578]
[1736153868985,0.27454,3643.7,3643.6,8.60436578]
[1736153869186,1.36554,3643.7,3643.6,8.60436578]
[1736153869681,1.36554,3643.7,3643.6,8.87890578]
[1736153870082,1.36554,3643.7,3643.6,2.41314]
[1736153870786,1.091,3643.7,3643.6,2.41314]
[1736153871590,1.091,3643.7,3643.6,43.21314]
[1736153872185,3.20630541,3644.1,3643.6,42.9386]
[1736153872385,3.20630541,3644.1,3644.0,0.27451]
[1736153872586,4.57181541,3644.1,3644.0,0.27451]
[1736153872884,1.36551,3644.1,3644.0,0.27451]
[1736153874290,1.091,3644.1,3644.0,0.27451]
[1736153876485,1.091,3644.1,3643.6,8.62102104]
[1736153876486,3.29301509,3644.1,3643.6,8.62102104]
[1736153876785,3.48234,3643.7,3643.6,3.32522105]
[1736153876985,5.68435509,3643.7,3643.6,3.32522105]
[1736153878893,0.2746,3642.9,3642.8,40.8]
[1736153879191,1.3656,3642.9,3642.8,40.8]
[1736153879687,4.57755165,3642.9,3642.8,40.8]
[1736153881095,1.3656,3642.9,3642.8,40.8]
[1736153881490,3.4718,3642.9,3642.8,40.8]
[1736153881692,0.27465,3642.2,3642.1,2.0645]
[1736153881893,1.36565,3642.2,3642.1,2.0645]
[1736153882195,0.27467,3641.9,3641.8,4.0045]
[1736153882684,0.27467,3641.9,3641.8,40.8]
[1736153884597,2.47668509,3641.9,3641.8,40.8]
[1736153884893,3.2078,3642.0,3641.4,3.2078]
[1736153885096,3.2078,3642.0,3641.4,3.48251]
[1736153885294,0.27468,3641.8,3641.5,40.8]
[1736153886096,0.27468,3641.9,3641.5,41.0747]
[1736153886295,0.27468,3641.8,3641.5,40.8]
[1736153886595,1.091,3641.9,3641.5,43.27721509]
[1736153886792,3.2078,3642.0,3641.9,2.47668509]
[1736153887190,6.41975165,3642.4,3642.1,0.27466]
[1736153887390,1.092,3642.2,3642.1,0.27466]
[1736153887600,1.092,3642.2,3642.0,1.943]
[1736153887798,6.41975165,3642.4,3642.2,0.27464]
[1736153887991,6.41975165,3642.4,3642.3,7.69305509]
[1736153887992,3.21195165,3642.4,3642.3,7.69305509]
[1736153888490,1.092,3642.9,3642.7,0.27461]
[1736153889398,1.092,3642.9,3642.4,2.1283]
[1736153889589,1.092,3642.9,3642.8,0.27461]
[1736153889898,1.092,3642.9,3642.7,0.27461]
[1736153890087,1.092,3642.9,3642.8,0.27461]
[1736153890495,7.548,3643.2,3643.1,0.27458]
[1736153890696,8.64,3643.2,3643.0,2.20201509]
[1736153891087,1.092,3643.1,3643.0,2.47660509]
[1736153892996,7.548,3643.2,3643.0,2.20201509]
[1736153893195,1.091,3643.3,3643.0,2.20201509]
[1736153893395,1.091,3643.3,3643.2,2.47659509]
[1736153895103,0.27455,3643.6,3643.4,0.27456]
[1736153895395,1.39955,3643.5,3643.3,0.27456]
[1736153895597,1.125,3643.5,3643.3,0.27456]
[1736153896003,1.125,3643.5,3643.3,0.27457]
[1736153896400,0.27456,3643.4,3643.2,2.47658509]
[1736153896595,1.958,3643.4,3643.2,2.20201509]
[1736153896802,1.958,3643.4,3643.2,2.47658509]
[1736153897307,1.958,3643.4,3643.3,0.27457]
[1736153905903,1.958,3643.4,3643.1,0.27458]
[1736153906108,1.965,3643.3,3643.0,3.2078]
[1736153906307,0.27458,3643.2,3643.0,3.48239]
[1736153906909,1.965,3643.3,3643.0,3.2078]
[1736153907108,3.2078,3643.1,3642.2,0.68663]
[1736153907407,3.48241,3642.7,3642.5,0.27462]
[1736153907706,1.125,3642.6,3642.2,1.9853]
[1736153908101,1.125,3642.6,3642.5,0.27463]
[1736153908300,3.1135,3642.6,3642.5,0.27463]
[1736153909206,0.27464,3642.3,3642.2,2.25995]
[1736153909505,0.27464,3642.3,3641.8,2.20201509]
[1736153909506,3.2078,3642.3,3641.8,2.20201509]
[1736153909709,0.27465,3642.2,3641.9,0.27467]
[1736153909910,0.27467,3642.0,3641.8,2.47669509]
[1736153910209,3.2078,3641.9,3641.8,2.47669509]
[1736153910407,5.1963,3641.9,3641.8,0.27468]
[1736153910705,5.47098,3641.9,3641.7,0.27468]
[1736153910903,1.125,3641.8,3641.7,0.27469]
[1736153911219,5.1963,3641.9,3641.8,0.27468]
[1736153911400,6.3213,3641.9,3641.8,0.27468]
[1736153911606,6.3213,3641.9,3641.8,2.47669509]
[1736153913308,6.3213,3641.9,3641.8,0.27468]
[1736153914107,5.1963,3641.9,3641.8,0.27468]
[1736153914309,6.3213,3641.9,3641.8,0.27468]
[1736153917114,3.2078,3642.3,3641.8,2.20201509]
[1736153917313,3.2078,3642.3,3641.5,42.9098]
[1736153917314,3.2078,3642.3,3642.2,0.27465]
[1736153917512,4.3328,3642.3,3642.2,0.27465]
[1736153925415,4.3328,3642.3,3642.2,2.26935]
[1736153931422,4.3328,3642.3,3642.2,0.27465]
[1736153931625,0.27469,3641.7,3641.4,4.57032191]
[1736153931923,3.2078,3641.5,3641.4,4.29562191]
[1736153932122,3.2078,3641.5,3641.4,4.57033191]
[1736153932726,3.2078,3641.5,3641.4,0.27471]
[1736153933519,3.2078,3641.5,3641.3,2.20201509]
[1736153933728,3.2078,3641.5,3641.4,0.27471]
[1736153934123,3.48251,3641.5,3641.2,2.29752]
[1736153934326,3.2078,3641.5,3641.2,2.0228]
[1736153934526,0.27471,3641.4,3641.2,2.0228]
[1736153934824,0.27471,3641.4,3641.1,2.0526]
[1736153934825,2.31211,3641.4,3641.1,2.0526]
[1736153935023,2.31211,3641.4,3641.1,2.32733]
[1736153935221,0.27472,3641.3,3641.1,2.0526]
[1736153937418,0.27475,3641.0,3640.7,0.27476]
[1736153937730,0.27475,3641.0,3640.5,5.40981509]
[1736153937731,3.2078,3641.0,3640.9,0.27475]
[1736153938925,1.123,3641.1,3640.8,43.00201509]
[1736153939242,1.123,3641.1,3641.0,0.27474]
[1736153942128,1.123,3641.1,3640.8,43.00201509]
[1736153942329,1.123,3641.1,3640.8,43.27676509]
[1736153942526,1.123,3641.1,3640.8,40.8]
[1736153942723,0.27475,3641.0,3640.8,40.8]
[1736153943124,2.1325,3640.9,3640.8,40.8]
[1736153943723,2.1325,3640.9,3640.8,41.07476]
[1736153945121,2.1325,3640.9,3640.8,40.8]
[1736153945525,2.1325,3640.9,3640.8,41.07476]
[1736153952228,2.1325,3640.9,3640.8,40.8]
[1736153952428,2.1325,3640.9,3640.8,41.07476]
[1736153953434,2.1325,3640.9,3640.8,40.8]
[1736153953735,2.1325,3640.9,3640.8,0.27476]
[1736153953935,2.1325,3640.9,3640.6,1.9581]
[1736153954126,2.1325,3640.9,3640.8,0.27476]
[1736153954932,3.2078,3641.0,3640.8,2.20201509]
[1736153955132,3.2078,3641.0,3640.9,0.27475]
[1736153955938,3.2078,3641.0,3640.9,41.07475]
[1736153957240,1.142,3641.3,3641.2,0.27472]
[1736153958940,1.142,3641.3,3640.8,2.20201509]
[1736153959130,1.142,3641.3,3641.1,0.27473]
[1736153959731,1.142,3641.3,3641.2,0.27473]
[1736153963540,3.2078,3641.4,3641.1,2.20201509]
[1736153963832,3.2078,3641.4,3641.3,0.27472]
[1736153964041,2.13589834,3641.5,3641.4,0.27471]
[1736153964240,2.13589834,3641.5,3641.4,3.66734468]
[1736153964835,1.142,3641.9,3641.8,0.27468]
[1736153967440,1.142,3641.9,3641.4,1.19061959]
[1736153967836,1.142,3641.9,3641.3,7.1996]
[1736153967837,1.41668,3641.9,3641.3,7.1996]
[1736153968032,1.41668,3641.9,3641.4,0.27471]
[1736153968239,1.41668,3641.9,3641.6,0.27469]
[1736153968844,1.41668,3641.9,3641.4,2.20201509]
[1736153969152,0.27468,3641.8,3641.6,0.27469]
[1736153969440,1.41668,3641.9,3641.6,0.27469]
[1736153969633,2.1464,3641.7,3641.6,0.27469]
[1736153973035,2.1464,3641.7,3641.4,2.20201509]
[1736153973240,2.1464,3641.7,3641.6,0.2747]
[1736153973447,2.1464,3641.7,3641.4,2.20201509]
[1736153973744,2.1464,3641.7,3641.6,0.2747]
[1736153975743,2.1464,3641.7,3641.4,2.20201509]
[1736153975940,2.1464,3641.7,3641.3,3.9918]
[1736153976146,2.42109,3641.7,3641.5,0.2747]
[1736153976346,2.1464,3641.7,3641.5,0.2747]
[1736153976746,2.1464,3641.7,3641.6,0.2747]
[1736153977247,2.1464,3641.7,3641.3,3.9918]
[1736153977444,2.42109,3641.7,3641.3,3.9918]
[1736153977745,2.1464,3641.7,3641.3,3.9918]
[1736153978347,4.28229834,3641.7,3641.3,3.9918]
[1736153978551,4.28229834,3641.7,3641.6,0.2747]
[1736153978945,4.28229834,3641.7,3641.3,3.9918]
[1736153979346,4.28229834,3641.7,3641.6,0.2747]
[1736153979847,4.28229834,3641.7,3641.3,3.9918]
[1736153980049,4.55698834,3641.7,3641.4,0.27471]
[1736153980249,4.28229834,3641.7,3641.3,1.9444]
[1736153980445,4.28229834,3641.7,3641.6,0.2747]
[1736153980640,4.28229834,3641.7,3641.5,0.2747]
[1736153981347,2.13589834,3641.6,3641.5,0.2747]
[1736153981649,2.13589834,3641.6,3641.3,1.9444]
[1736153981840,2.13589834,3641.6,3641.5,0.2747]
[1736153982347,2.13589834,3641.6,3641.4,0.27471]
[1736153982547,2.41059834,3641.6,3641.4,0.2747]
[1736153982750,2.13589834,3641.6,3641.3,1.9444]
[1736153983050,3.2078,3641.5,3641.3,1.9444]
[1736153983354,0.27472,3641.4,3641.1,0.27473]
[1736153983551,0.27471,3641.4,3641.1,0.27473]
[1736153983849,0.27471,3641.4,3641.0,4.29562191]
[1736153984054,3.48253,3641.1,3641.0,4.29562191]
[1736153984248,4.62453,3641.1,3641.0,4.29562191]
[1736153984450,0.27474,3641.0,3640.8,43.19155]
[1736153984649,4.39444,3641.0,3640.8,43.19155]
[1736153985760,7.60639165,3641.0,3640.8,43.19155]
[1736153986263,7.60639165,3641.0,3640.8,42.9168]
[1736153986264,7.33165165,3641.0,3640.8,42.9168]
[1736153986457,7.60639165,3641.0,3640.8,43.19155]
[1736153987055,7.60639165,3641.0,3640.8,42.9168]
[1736153987651,7.60639165,3641.0,3640.8,43.19155]
[1736153987843,7.60639165,3641.0,3640.8,41.07475]
[1736153988048,7.33165165,3641.0,3640.8,40.8]
[1736153988250,7.60640165,3641.0,3640.8,40.8]
[1736153988451,7.60640165,3641.0,3640.8,41.07476]
[1736153989855,0.27475,3640.9,3640.8,40.8]
[1736153990353,7.60639165,3641.0,3640.8,41.07475]
[1736153990657,7.60639165,3641.0,3640.8,0.27475]
[1736153990862,7.33165165,3641.0,3640.8,0.27475]
[1736153991152,7.33165165,3641.0,3640.9,40.8]
[1736153991859,7.33165165,3641.0,3640.5,4.34811509]
[1736153992055,4.1197,3641.0,3640.5,4.34811509]
[1736153992459,4.1197,3641.0,3640.8,0.27475]
[1736153993159,4.1197,3641.0,3640.9,0.27475]
[1736153993964,2.1517,3641.0,3640.9,0.27475]
[1736153994160,3.2827,3641.0,3640.9,0.27475]
[1736153998367,1.131,3641.0,3640.9,0.27475]
[1736153998669,1.131,3641.0,3640.9,2.25405]
[1736154000362,3.2078,3641.1,3641.0,0.27474]
[1736154000561,3.2078,3641.1,3641.0,2.35194]
[1736154003770,2.11679376,3641.3,3641.2,2.47674509]
[1736154004069,1.131,3641.8,3641.7,0.27469]
[1736154004571,2.1233,3642.1,3641.6,2.20201509]
[1736154004767,2.1233,3642.1,3642.0,0.27467]
[1736154004977,1.131,3642.1,3642.0,0.27467]
[1736154005265,7.551,3642.5,3642.0,40.8]
[1736154005470,1.131,3642.4,3642.3,0.27464]
[1736154005868,12.89971763,3642.5,3642.2,2.20201509]
[1736154006069,12.89971763,3642.5,3642.4,0.27464]
[1736154006277,14.03071763,3642.5,3642.4,0.27464]
[1736154006769,8.682,3642.5,3642.4,0.27464]
[1736154007275,8.682,3642.5,3642.3,2.12]
[1736154007571,8.682,3642.5,3642.4,0.27464]
[1736154009274,11.89105624,3642.5,3642.4,0.27464]
[1736154010278,8.682,3642.5,3642.4,0.27464]
[1736154011775,5.33235624,3642.6,3642.5,0.27463]
[1736154012075,6.46235624,3642.6,3642.5,0.27463]
[1736154012379,0.27464,3642.5,3642.4,0.27463]
[1736154013071,6.46235624,3642.6,3642.1,2.0479]
[1736154013380,0.27463,3642.5,3642.4,0.27464]
[1736154013575,1.13,3642.5,3642.3,0.27464]
[1736154013772,1.13,3642.5,3642.4,0.27464]
[1736154014177,1.40463,3642.5,3642.4,0.27464]
[1736154014578,1.13,3642.5,3642.4,0.27464]
[1736154015384,2.1233,3642.6,3642.2,2.20201509]
[1736154015578,1.13,3642.5,3642.1,2.0479]
[1736154015779,1.40463,3642.5,3642.3,0.27464]
[1736154016381,0.27464,3642.4,3642.2,0.27465]
[1736154016573,0.27464,3642.4,3642.1,2.32255]
[1736154016768,0.27464,3642.4,3641.9,2.0764]
[1736154016769,1.13,3642.5,3641.9,2.0764]
[1736154016973,0.27466,3642.1,3641.9,2.35107]
[1736154017279,2.1083,3642.0,3641.9,2.0764]
[1736154017474,2.38297,3642.0,3641.8,5.45838]
[1736154018384,2.1083,3642.0,3641.8,3.2078]
[1736154018582,0.27467,3641.9,3641.8,3.2078]
[1736154019080,2.1083,3642.0,3641.8,3.48248]
[1736154019281,2.1083,3642.0,3641.9,0.27467]
[1736154019485,2.1083,3642.0,3641.9,2.37317]
[1736154019785,1.126,3642.1,3642.0,0.27467]
[1736154019979,1.126,3642.1,3642.0,2.47668509]
[1736154020173,1.126,3642.1,3642.0,4.49138509]
[1736154020379,1.126,3642.1,3642.0,45.29138509]
[1736154020872,5.53832,3642.7,3642.0,45.29138509]
[1736154021077,1.126,3642.6,3642.0,45.29138509]
[1736154021387,1.126,3642.6,3642.5,0.27463]
[1736154021882,1.40062,3642.6,3642.4,2.41883]
[1736154022473,1.126,3642.6,3642.4,2.41883]
[1736154023282,1.126,3642.6,3642.5,0.27463]
[1736154023885,1.126,3642.6,3642.4,2.1442]
[1736154024079,1.126,3642.6,3642.4,2.41883]
[1736154024284,1.126,3642.6,3642.5,0.27463]
[1736154025691,3.48242,3642.7,3642.6,0.27462]
[1736154025692,3.2078,3642.7,3642.6,0.27462]
[1736154025983,4.3328,3642.7,3642.6,0.27462]
[1736154026990,3.2078,3642.7,3642.6,2.47663509]
[1736154027184,4.3328,3642.7,3642.6,2.47663509]
[1736154027393,4.3328,3642.7,3642.6,4.54683509]
[1736154030389,2.1287,3643.1,3642.6,4.27221509]
[1736154030594,3.48237,3643.3,3643.2,0.27457]
[1736154030595,2.0155,3643.3,3643.2,0.27457]
[1736154030792,4.32947197,3643.4,3643.3,0.27457]
[1736154030987,4.32947197,3643.4,3643.3,2.47658509]
[1736154031689,3.20447197,3643.4,3643.3,2.47658509]
[1736154032284,3.20447197,3643.4,3643.3,5.68438509]
[1736154032693,3.1405,3643.6,3643.3,5.40981509]
[1736154033097,3.1405,3643.6,3643.5,0.27455]
[1736154036098,1.125,3643.6,3643.5,0.27455]
[1736154036387,1.125,3643.6,3643.3,46.20981509]
[1736154036388,1.125,3643.8,3643.7,0.27453]
[1736154037487,2.1876,3643.9,3643.7,0.27453]
[1736154037488,2.1876,3643.9,3643.8,0.27453]
[1736154037686,1.125,3643.9,3643.8,4.35153]
[1736154037991,1.125,3644.1,3643.8,6.1755]
[1736154038294,1.125,3644.1,3644.0,0.27451]
[1736154051901,0.27453,3643.8,3643.7,3.2078]
[1736154052306,0.6514,3644.0,3643.4,41.07456]
[1736154052307,0.27456,3643.5,3643.4,41.07456]
[1736154052608,0.27456,3643.5,3643.4,40.8]
[1736154052904,0.27455,3643.6,3643.4,41.07456]
[1736154053094,0.27455,3643.6,3643.4,40.8]
[1736154053295,0.27455,3643.5,3643.4,40.8]
[1736154053506,3.852,3643.7,3642.8,9.98925896]
[1736154053699,0.68639,3643.5,3642.8,10.37825896]
[1736154053901,3.852,3643.7,3642.5,0.27462]
[1736154053902,3.2078,3643.1,3642.5,0.27462]
[1736154054099,0.27461,3642.8,3642.5,0.27462]
[1736154054498,0.27461,3642.8,3642.4,43.66561509]
[1736154054807,2.3988,3643.0,3642.4,43.66561509]
[1736154055199,2.67339,3643.0,3642.7,0.27461]
[1736154056016,1.7572,3643.0,3642.9,0.2746]
[1736154056201,1.7572,3643.0,3642.8,0.659]
[1736154056502,1.7572,3643.0,3642.9,0.2746]
[1736154056799,0.27462,3642.7,3642.4,41.73823]
[1736154057006,0.6416,3642.9,3642.4,41.4636]
[1736154057208,0.27461,3642.8,3642.5,0.27463]
[1736154057503,0.6416,3642.9,3642.4,41.4636]
[1736154057707,0.27462,3642.6,3642.4,41.4636]
[1736154057906,0.27463,3642.5,3642.4,41.4636]
[1736154058307,0.27463,3642.6,3642.4,41.4636]
[1736154058509,0.27463,3642.5,3642.4,41.4636]
[1736154058707,0.89713,3642.5,3642.4,41.4636]
[1736154059210,0.6225,3642.5,3642.4,41.4636]
[1736154059411,0.6225,3642.5,3642.4,41.73824]
[1736154060307,0.6225,3642.5,3642.4,41.4636]
[1736154060615,0.6225,3642.5,3642.4,41.73824]
[1736154060912,0.6225,3642.5,3642.4,41.4636]
[1736154061516,1.7391,3643.0,3642.4,41.4636]
[1736154061811,1.113,3643.0,3642.6,2.20201509]
[1736154062013,1.113,3643.0,3642.9,2.20201509]
[1736154062314,1.113,3643.0,3642.9,2.47661509]
[1736154062514,1.113,3643.0,3642.9,43.27661509]
[1736154062811,1.7702,3643.2,3643.1,0.27458]
[1736154063415,1.7702,3643.2,3643.1,0.87888]
[1736154064713,1.7702,3643.2,3643.1,41.67888]
[1736154065107,1.7702,3643.2,3643.1,0.6043]
[1736154065307,1.7702,3643.2,3643.1,0.87888]
[1736154065510,1.7702,3643.2,3643.1,0.6043]
[1736154065715,1.7702,3643.2,3643.1,41.4043]
[1736154066011,1.7702,3643.2,3643.1,41.67888]
[1736154066207,1.7702,3643.2,3643.1,41.4043]
[1736154066409,2.04478,3643.2,3643.1,0.6043]
[1736154066608,0.27458,3643.1,3643.0,3.2078]
[1736154067303,0.93038,3643.1,3643.0,3.2078]
[1736154067509,0.6558,3643.1,3642.7,0.6497]
[1736154067905,0.6558,3643.1,3642.8,0.2746]
[1736154067906,0.27459,3643.0,3642.8,0.2746]
[1736154068105,1.58359,3643.1,3642.8,0.2746]
[1736154068306,1.309,3643.1,3642.8,0.2746]
[1736154068509,0.27459,3643.0,3642.8,0.2746]
[1736154068712,0.27461,3642.8,3642.4,3.48243]
[1736154069011,0.27463,3642.5,3642.4,3.2078]
[1736154069214,0.27463,3642.5,3642.4,7.51264387]
[1736154069815,0.27463,3642.6,3642.4,7.51264387]
[1736154070018,0.27463,3642.5,3642.4,7.51264387]
[1736154070316,0.27463,3642.6,3642.4,7.51264387]
[1736154070517,0.6583,3642.5,3642.4,7.78728387]
[1736154070715,0.27461,3642.8,3642.4,7.51264387]
[1736154070915,0.6583,3642.9,3642.8,0.27461]
[1736154071109,0.6583,3642.9,3642.8,2.47662509]
[1736154071110,1.7713,3642.9,3642.8,2.47662509]
[1736154071309,1.113,3642.9,3642.8,2.47662509]
[1736154071909,1.113,3642.9,3642.8,43.27662509]
[1736154073420,1.113,3642.9,3642.8,43.00201509]
[1736154073717,1.113,3642.9,3642.8,40.8]
[1736154073915,1.113,3642.9,3642.8,41.07461]
[1736154075415,1.113,3642.9,3642.8,0.27461]
[1736154076019,1.3876,3642.9,3642.6,0.27461]
[1736154076214,0.6193,3642.8,3642.6,0.27462]
[1736154076719,0.27462,3642.7,3642.5,0.27463]
[1736154076917,0.6193,3642.8,3642.6,0.27462]
[1736154077116,0.89391,3642.8,3642.6,0.27462]
[1736154077318,0.89391,3642.8,3642.5,0.27462]
[1736154077918,0.27463,3642.5,3642.4,3.2078]
[1736154078125,0.6451,3642.7,3642.4,3.2078]
[1736154078318,0.27463,3642.5,3642.4,3.2078]
[1736154078617,0.6451,3642.7,3642.4,3.48243]
[1736154078817,0.27462,3642.6,3642.4,3.2078]
[1736154079023,0.6451,3642.7,3642.4,3.2078]
[1736154079221,0.27462,3642.6,3642.4,3.2078]
[1736154079524,0.88062,3642.6,3642.4,3.2078]
[1736154080523,0.88062,3642.6,3642.3,0.27464]
[1736154080725,0.88062,3642.6,3642.4,0.88053]
[1736154081424,0.6193,3642.8,3642.4,2.80791509]
[1736154081626,0.6193,3642.8,3642.6,0.27462]
[1736154081927,0.6193,3642.8,3642.7,40.8]
[1736154082321,0.6193,3642.8,3642.7,41.07461]
[1736154082521,0.6193,3642.8,3642.7,0.27461]
[1736154082923,0.6193,3642.8,3642.7,41.07461]
[1736154083225,3.20447197,3643.1,3643.0,0.27459]
[1736154083429,3.20447197,3643.1,3643.0,5.68440509]
[1736154085026,3.81817197,3643.9,3643.7,0.27454]
[1736154085224,4.3308,3643.8,3643.7,0.27454]
[1736154086428,1.7367,3643.9,3643.8,0.27453]
[1736154090124,1.7367,3643.9,3643.7,3.2078]
[1736154090322,1.7367,3643.9,3643.7,3.48233]
[1736154091626,1.7367,3643.9,3643.7,3.2078]
[1736154091932,0.27453,3643.8,3643.7,3.2078]
[1736154094031,1.7367,3643.9,3643.7,3.2078]
[1736154094032,2.01123,3643.9,3643.7,3.2078]
[1736154094227,1.7367,3643.9,3643.8,0.27453]
[1736154094524,1.7367,3643.9,3643.7,3.2078]
[1736154094725,3.20447197,3644.1,3643.7,3.483]
[1736154094931,1.123,3644.0,3643.9,0.27452]
[1736154095128,3.20447197,3644.1,3644.0,0.27451]
[1736154095329,4.32747197,3644.1,3644.0,0.27451]
[1736154096330,1.123,3644.1,3644.0,0.27451]
[1736154096525,0.5772,3644.3,3643.9,40.8]
[1736154096830,1.7002,3644.3,3644.2,0.2745]
[1736154097229,1.97469,3644.3,3644.2,0.6164]
[1736154097630,0.2745,3644.2,3643.9,41.07452]
[1736154097824,0.2745,3644.2,3643.9,41.69092]
[1736154098031,1.9747,3644.3,3644.0,0.27451]
[1736154098533,1.9747,3644.3,3644.1,0.2745]
[1736154100326,1.9747,3644.3,3644.0,0.27451]
[1736154100327,0.2745,3644.2,3644.0,0.27451]
[1736154100531,0.2745,3644.2,3644.1,0.27451]
[1736154100839,0.2745,3644.2,3643.9,0.5556]
[1736154101032,0.2745,3644.2,3644.1,0.27451]
[1736154102634,1.97469,3644.3,3644.2,0.2745]
[1736154102834,1.7002,3644.3,3644.2,0.2745]
[1736154104841,1.97469,3644.3,3644.2,0.2745]
[1736154105634,0.2745,3644.2,3644.1,0.2745]
[1736154106030,1.9747,3644.3,3644.2,0.2745]
[1736154106438,0.27451,3644.1,3644.0,0.27451]
[1736154106838,0.87271,3644.2,3644.1,0.27451]
[1736154107144,0.27451,3644.1,3644.0,0.27451]
[1736154107439,1.7002,3644.3,3643.9,0.5556]
[1736154107643,1.97469,3644.3,3644.2,0.2745]
[1736154107844,0.2745,3644.2,3644.1,0.2745]
[1736154108237,1.7002,3644.3,3643.9,0.5556]
[1736154108639,1.7002,3644.3,3644.2,0.2745]
[1736154108939,1.97469,3644.3,3644.2,0.2745]
[1736154109138,1.9747,3644.3,3644.2,0.2745]
[1736154109740,0.2745,3644.2,3644.1,0.2745]
[1736154110850,1.9747,3644.3,3644.2,0.2745]
[1736154111051,1.7002,3644.3,3644.2,0.2745]
[1736154112151,3.48228,3644.5,3644.4,0.27448]
[1736154112341,4.8652,3644.5,3644.1,2.75161509]
[1736154112538,0.27449,3644.3,3644.2,0.27449]
[1736154112743,0.27449,3644.3,3644.2,41.07449]
[1736154113047,0.27449,3644.3,3644.2,0.27449]
[1736154113242,4.8652,3644.5,3644.1,2.75161509]
[1736154113449,0.27449,3644.4,3644.3,0.27449]
[1736154120051,0.2745,3644.3,3644.2,0.27449]
[1736154121854,0.5759,3644.4,3644.2,0.27449]
[1736154121855,0.5759,3644.4,3644.3,0.27449]
[1736154122059,3.20447197,3644.6,3644.2,3.2078]
[1736154122263,3.20447197,3644.6,3644.5,2.47649509]
[1736154123055,3.20447197,3644.6,3644.5,43.27649509]
[1736154123564,4.27262929,3644.8,3644.5,43.27649509]
[1736154123565,1.111,3645.0,3644.5,43.00201509]
[1736154123869,1.111,3645.0,3644.9,0.27445]
[1736154124062,3.20447197,3645.1,3645.0,0.27444]
[1736154124561,3.47890197,3645.1,3645.0,0.27444]
[1736154125157,0.27443,3645.1,3645.0,0.27444]
[1736154126461,0.27445,3644.9,3644.8,2.47646509]
[1736154126665,2.14135628,3645.2,3644.8,2.20201509]
[1736154126869,0.27444,3645.0,3644.9,0.27445]
[1736154127160,0.27445,3644.9,3644.8,2.47646509]
[1736154128255,0.27445,3644.9,3644.8,0.27445]
[1736154128457,0.27445,3644.9,3644.7,0.27446]
[1736154128752,0.5544,3644.8,3644.7,0.27446]